[Event "87th Tata Steel Masters 2025"]
[White "Van Foreest,Jorden"]
[Black "Abdusattorov,Nodirbek"]
[Site "Wijk aan Zee"]
[Round "5.5"]
[Annotator "TA"]
[Result "0-1"]
[Date "2025.01.22"]
[WhiteElo "2680"]
[BlackElo "2768"]
[PlyCount "94"]
[TimeControl "60"]

{[%evp 9,94,14,24,0,0,-3,0,0,0,-16,35,30,28,40,43,40,46,7,18,30,24,29,66,30,34,0,-5,-8,-3,0,-27,-70,-74,-70,-79,-62,-55,-66,-61,-64,-62,-113,-97,-102,-100,-112,-99,-137,-135,-151,-149,-147,-131,-223,-231,-710,-711,-711,-710,-845,-740,-625,-828,-920,-815,-822,-894,-879,-781,-821,-829,-810,-777,-1132,-1090,-1387,-1286,-1166,-1139,-1040,-854,-1115,-1107,-1015,-978,-884,-770]} 1. e4 {[%emt 0:0:6]} c6 {[%emt 0:0:17]} 2. d4 {[%emt 0:0:11]} d5 {[%emt 0:0:11]} 3. e5 {[%emt 0:0:25]} Bf5 {[%emt 0:0:13]} 4. c4 {[%emt 0:0:39]} e6 {[%emt 0:0:18]} 5. Nc3 {[%emt 0:0:27]} Bb4 {[%emt 0:3:52]} 6. Nge2 {[%emt 0:0:17]} Ne7 {[%emt 0:0:29]} 7. a3 {[%emt 0:0:10]} Ba5 {[%emt 0:0:6]} 8. b4 {[%emt 0:0:7]} Bc7 {[%emt 0:0:12]} 9. Ng3 {[%emt 0:0:20]} Bg6 {[%emt 0:11:24]} ({Black should play} 9... a5 $11 10. b5 a4 )10. h4 {[%emt 0:3:35][%cal Yh2h4,Yh4h5][%mdl 32]} h6 {[%emt 0:0:28]} 11. h5 {[%emt 0:3:58]} Bh7 {[%emt 0:0:7]} 12. Qg4 {[%emt 0:3:37]} Rg8 {[%emt 0:1:29]} 13. Be2 {[%emt 0:6:0]} dxc4 {[%emt 0:2:27]} 14. Bxc4 {[%emt 0:1:41]} Nd7 {[%emt 0:0:27]} 15. O-O {[%emt 0:13:16]} Nf5 {[%emt 0:2:23]} 16. Be3 {[%emt 0:3:45]} Qe7 {[%emt 0:2:49]} 17. b5 {[%emt 0:6:2] And now bxc6 would win.} c5 $1 {[%emt 0:4:57]} 18. Nxf5 {[%emt 0:4:10]} Bxf5 {[%emt 0:0:11]} 19. Qf3 {[%emt 0:0:2]} O-O-O {[%emt 0:10:17]} 20. Nd5 {[%emt 0:15:56] Dodges Nb6} exd5 {[%emt 0:2:14]} 21. Bxd5 {[%emt 0:0:0] [#]} Kb8 $1 {[%emt 0:10:55][%cal Yc5d4] aiming for ...cxd4!.} 22. Qxf5 {[%emt 0:0:54] [#]} Nxe5 $1 {[%emt 0:0:37]} 23. dxe5 {[%emt 0:8:35]} Rxd5 {[%emt 0:0:5]} 24. f4 {[%emt 0:0:7]} Rgd8 {[%emt 0:0:48]} 25. Qe4 {[%emt 0:0:45]} (25. Bf2 $15 )f6 $17 {[%emt 0:3:4]} 26. a4 {[%emt 0:0:32]} fxe5 {[%emt 0:1:11]} 27. a5 {[%emt 0:0:33]} Qe8 {[%emt 0:7:20][%csl Yb5,Yh5]} 28. b6 {[%emt 0:1:33]} axb6 {[%emt 0:0:15]} 29. axb6 {[%emt 0:0:5]} Bxb6 {[%emt 0:0:3]} 30. fxe5 {[%emt 0:1:18]} Bc7 {[%emt 0:3:20]} (30... Qxh5 $2 31. e6 Re5 32. Qf4 $16 )(30... Qxe5 $2 31. Bf4 c4+ 32. Kh1 $18 )31. Bf4 {[%emt 0:2:53]} (31. e6 $17 {was the only defense.} Re5 (31... Rxh5 $2 32. Bf4 $18 )(31... Qxh5 $2 32. e7 $16 )32. Qf3 )Rd4 $1 $19 {[%emt 0:7:15]} (31... Bxe5 $2 {loses.} 32. Rfe1 (32. Rae1 b5 $18 )Qxh5 33. Bxe5+ Qxe5 34. Qxe5+ Rxe5 35. Rxe5 $18 )(31... Qxh5 32. e6 Bxf4 33. Qxf4+ Qe5 34. e7 $16 )32. Qe2 $2 {[%emt 0:7:14] [#]} (32. Qe3 Rxf4 (32... Qxh5 33. Bg3 $17 )33. Qxf4 Bxe5 (33... Qxh5 34. Qa4 $14 )34. Qf3 Bd4+ 35. Kh1 Bxa1 36. Rxa1 )Rxf4 $1 {[%emt 0:12:27][%mdl 512]} 33. Rxf4 {[%emt 0:0:0]} Qxe5 {[%emt 0:14:22]} 34. Qa2 {[%emt 0:10:16]} Qe3+ {[%emt 0:0:0] White is weak on the dark squares} ({And not} 34... Qxf4 35. Qa8# )35. Rf2 {[%emt 0:0:7] [#]} Bg3 $1 {[%emt 0:0:0] Active counter play!} 36. Qa8+ {[%emt 0:0:7]} Kc7 {[%emt 0:0:0][%cal Yd8a8]} 37. Qa5+ {[%emt 0:0:3]} b6 {[%emt 0:0:0]} 38. Qa7+ {[%emt 0:0:3]} Kc6 {[%emt 0:0:0]} 39. Qa4+ {[%emt 0:0:2]} b5 {[%emt 0:0:0]} 40. Qa6+ {[%emt 0:0:18]} Kd5 {[%emt 0:8:48]} 41. Qb7+ {[%emt 1:2:38]} Kc4 {[%emt 0:28:47]} 42. Qf7+ {[%emt 0:0:3]} Rd5 {[%emt 0:0:6]} 43. Raa2 {[%emt 0:0:23]} Bxf2+ {[%emt 0:5:34]} 44. Rxf2 {[%emt 0:0:3]} Qd4 {[%emt 0:3:43]} 45. Kh2 {[%emt 0:1:8]} Qe5+ {[%emt 0:0:48]} 46. Kg1 {[%emt 0:0:25]} Kb4 {[%emt 0:1:8]} (46... Qxh5 $2 47. Rf4+ Kb3 48. Rf3+ Kb4 49. Qf4+ Rd4 50. Qc1 $19 )47. Rf1 {[%emt 0:0:46]} Rd2 {[%emt 0:0:33]} (47... Qxh5 48. Rb1+ Kc4 49. Qf1+ Rd3 50. Qc1+ Kd5 51. Qc2 $11 )0-1

[Event "87th Tata Steel Masters 2025"]
[White "Gukesh,Dommaraju"]
[Black "Keymer,Vincent"]
[Site "Wijk aan Zee"]
[Round "5.6"]
[Annotator "TA"]
[Result "1-0"]
[Date "2025.01.22"]
[WhiteElo "2777"]
[BlackElo "2733"]
[PlyCount "143"]
[TimeControl "60"]

{[%evp 13,143,0,7,8,2,0,31,31,24,16,31,8,18,0,14,7,5,8,9,12,9,12,8,5,13,4,7,12,22,13,18,0,92,72,86,82,87,86,87,87,82,83,90,99,79,66,122,20,130,130,127,135,141,141,150,147,148,129,164,154,158,160,156,185,172,173,194,167,175,141,185,188,194,194,250,239,279,203,231,224,225,236,250,251,278,276,283,267,260,277,271,272,302,299,646,353,685,679,635,566,625,0,594,274,272,256,293,293,318,318,293,293,264,170,309,316,297,299,377,375,351,289,289,296,876,938,881,550,5398,5398,5277,5197]} 1. d4 {[%emt 0:0:3]} Nf6 {[%emt 0:0:4]} 2. c4 {[%emt 0:0:6]} e6 {[%emt 0:0:2]} 3. Nc3 {[%emt 0:0:7]} Bb4 {[%emt 0:0:6]} 4. e3 {[%emt 0:0:11]} O-O {[%emt 0:0:36]} 5. Bd2 {[%emt 0:0:7]} d5 {[%emt 0:4:18]} 6. Nf3 {[%emt 0:0:16]} Nbd7 {[%emt 0:3:4]} 7. Qc2 {[%emt 0:1:2]} c6 {[%emt 0:1:54]} 8. Be2 {[%emt 0:12:49]} b6 {[%emt 0:21:37]} 9. O-O {[%emt 0:7:17][%cal Yc3d5]} a5 {[%emt 0:4:22]} 10. a3 {[%emt 0:4:59]} Bxc3 {[%emt 0:2:18]} 11. Bxc3 {[%emt 0:0:41]} Ne4 {[%emt 0:2:41]} 12. Be1 {[%emt 0:11:11]} Ba6 {[%emt 0:5:18]} 13. Bd3 {[%emt 0:7:51]} h6 {[%emt 0:3:16]} 14. Bxe4 {[%emt 0:13:23]} dxe4 {[%emt 0:0:8]} 15. Nd2 {[%emt 0:0:3]} f5 {[%emt 0:15:23]} 16. f3 {[%emt 0:0:7]} exf3 {[%emt 0:0:4]} 17. Nxf3 {[%emt 0:0:23]} c5 {[%emt 0:1:14]} 18. Rd1 {[%emt 0:1:18][%cal Ya1d1,Yd1d4,Yd4d6][%mdl 32]} cxd4 {[%emt 0:17:57]} 19. Rxd4 {[%emt 0:0:10]} (19. exd4 Rc8 20. d5 e5 $17 (20... Bxc4 21. dxe6 Bxf1 22. Qf2 $11 )(20... Rxc4 21. Bc3 $15 ))Qe8 {[%emt 0:1:20]} 20. Bg3 {[%emt 0:4:27]} e5 {[%emt 0:2:16]} 21. Rd6 {[%emt 0:3:10]} Rc8 {[%emt 0:0:4]} 22. Rfd1 {[%emt 0:7:27]} f4 {[%emt 0:8:33]} (22... Rxc4 $6 23. Qd2 Bc8 24. Qd5+ (24. Rxd7 Qxd7 25. Qxd7 Bxd7 $16 )Qf7 25. Qxf7+ (25. Rxd7 Bxd7 26. Qxf7+ Rxf7 $11 )(25. Bxe5 Qxd5 26. R1xd5 Nxe5 $11 )(25. Nxe5 Qxd5 26. R1xd5 Nxe5 $14 )Rxf7 26. Bxe5 $14 (26. Nxe5 Nxe5 27. Bxe5 Re7 $11 ))(22... Rf7 $11 {keeps the balance.} )23. exf4 $16 {[%emt 0:7:11]} (23. Rxd7 fxg3 24. hxg3 Rxc4 $11 )exf4 {[%emt 0:0:2]} 24. Bf2 {[%emt 0:0:43]} (24. Rxd7 fxg3 25. hxg3 Bb5 $17 )Rf7 {[%emt 0:12:11]} 25. R1d4 {[%emt 0:9:17] White has more active pieces.} (25. Bxb6 Nxb6 26. Rxb6 Bxc4 $17 )Bb7 {[%emt 0:1:1]} 26. Qd1 {[%emt 0:0:5]} Bc6 {[%emt 0:1:3]} 27. b4 {[%emt 0:7:1]} axb4 {[%emt 0:0:1]} (27... Ne5 $2 28. Rd8 Rxd8 29. Rxd8 Nxc4 (29... Nxf3+ $2 30. gxf3 $18 )30. Rxe8+ $18 )28. axb4 {[%emt 0:0:2]} Qe7 {[%emt 0:1:14]} 29. Qd3 {[%emt 0:6:8]} Nf6 {[%emt 0:2:12]} (29... Nf8 $14 )30. Rxf4 {[%emt 0:2:6]} (30. b5 $16 Ba8 31. Rxb6 (31. Rxf4 Ne4 $16 ))Be4 {[%emt 0:0:13]} (30... Ne8 $1 $11 31. Rxf7 Qxd6 )31. Qd4 {[%emt 0:0:14]} Bxf3 {[%emt 0:0:45]} 32. Rxf3 {[%emt 0:1:8][%cal Yf2h4]} Qe2 {[%emt 0:0:16]} 33. Rd8+ $1 {[%emt 0:4:11]} (33. Rxb6 $2 Rd7 34. Re3 (34. Rd6 $2 Rxc4 35. Kh1 Rxd4 $19 )Qxf2+ (34... Qxc4 35. Qxc4+ Rxc4 36. h3 $11 )35. Kxf2 Rxd4 $19 )(33. Qxb6 $6 Rxc4 34. Qe3 Qxe3 35. Bxe3 Rxb4 $11 )Rxd8 {[%emt 0:0:17]} 34. Qxd8+ {[%emt 0:0:1]} Rf8 {[%emt 0:0:18]} 35. Qd3 {[%emt 0:0:11]} (35. Qxb6 $2 Qd1+ $19 (35... Qxc4 36. h3 $16 ))Qxd3 {[%emt 0:1:13]} 36. Rxd3 {[%emt 0:0:2][%mdl 4096] Endgame KRB-KRN. White is a pawn up.} Rc8 {[%emt 0:0:3]} 37. Rd4 {[%emt 0:1:23]} ({Don't take} 37. Bxb6 Rxc4 38. Rb3 Nd5 $16 )Kf7 {[%emt 0:0:28]} 38. Kf1 {[%emt 0:0:54]} Ra8 {[%emt 0:1:3]} 39. Ke2 {[%emt 0:1:1]} Ra4 {[%emt 0:0:21]} 40. Be1 {[%emt 0:0:28]} Ke6 {[%emt 0:0:36]} 41. Bd2 {[%emt 0:20:56]} h5 {[%emt 0:5:56]} 42. Kd3 {[%emt 0:3:34]} Ng4 {[%emt 0:17:12]} 43. Kc3 {[%emt 0:2:41]} Nf6 {[%emt 0:9:8]} (43... Nxh2 $142 44. Kb3 Ra8 )44. Kb3 $18 {[%emt 0:5:55]} Ra1 {[%emt 0:1:55]} 45. Bc3 {[%emt 0:1:6]} Rb1+ {[%emt 0:2:37]} 46. Kc2 {[%emt 0:3:20]} Rf1 {[%emt 0:5:13]} 47. Rd2 {[%emt 0:0:42]} Ne8 {[%emt 0:0:14]} 48. Kb3 {[%emt 0:3:57]} g6 {[%emt 0:4:51]} 49. Bd4 {[%emt 0:1:18]} Rb1+ {[%emt 0:4:28]} 50. Ka4 {[%emt 0:0:17]} Rc1 {[%emt 0:0:57]} 51. Bxb6 {[%emt 0:1:50]} Rxc4 {[%emt 0:0:1]} 52. Kb5 {[%emt 0:4:14]} Rc1 {[%emt 0:0:16]} 53. Bc5 {[%emt 0:0:10] Prevents Nd6+.} Nf6 $2 {[%emt 0:0:8]} (53... Nc7+ 54. Ka4 (54. Kc6 Na6 $18 )Ra1+ 55. Kb3 Rb1+ 56. Ka2 Re1 )54. Rd6+ {[%emt 0:1:45]} Kf5 $2 {[%emt 0:0:30]} (54... Ke5 55. Rc6 Rd1 )55. Kc6 {[%emt 0:1:20]} Ng4 {[%emt 0:2:0]} 56. Rd2 {[%emt 0:2:47]} ({Less strong is} 56. b5 Ne5+ 57. Kd5 Rb1 $16 )Ke6 {[%emt 0:0:18]} 57. Rd6+ {[%emt 0:0:1]} Kf5 {[%emt 0:0:7]} 58. b5 {[%emt 0:3:21]} (58. Rd5+ $142 Kf4 59. b5 )Ne5+ {[%emt 0:0:2]} 59. Kd5 {[%emt 0:0:2]} Nd3 {[%emt 0:0:7] [#]} 60. Rc6 $1 {[%emt 0:0:42]} Nf4+ {[%emt 0:2:4]} 61. Kd6 {[%emt 0:15:2]} Rd1+ {[%emt 0:15:44]} 62. Kc7 {[%emt 0:0:19]} Nd5+ {[%emt 0:1:58]} 63. Kc8 {[%emt 0:0:56] aiming for b6.} Rc1 {[%emt 0:0:20]} (63... Rd2 $142 64. Rd6 Ke5 )64. Kd7 {[%emt 0:1:5]} Rc2 {[%emt 0:0:44]} 65. Bd6 {[%emt 0:0:50]} Rxg2 {[%emt 0:0:42] [#]} 66. Rc5 $1 {[%emt 0:0:1]} Ke4 {[%emt 0:0:1]} 67. Ke6 {[%emt 0:0:35]} Rd2 {[%emt 0:0:42]} 68. h4 {[%emt 0:0:1]} Nb6 $2 {[%emt 0:0:49]} (68... Rd4 69. Rc6 Rd2 )69. Rc6 {[%emt 0:0:33]} Nd5 {[%emt 0:0:1]} 70. b6 {[%emt 0:0:26]} Nxb6 {[%emt 0:0:59]} 71. Rxb6 {[%emt 0:0:1]} Kf3 {[%emt 0:0:25]} 72. Be7 {[%emt 0:0:48]} 1-0

[Event "87th Tata Steel Masters 2025"]
[White "Giri,Anish"]
[Black "Sarana,Alexey"]
[Site "Wijk aan Zee"]
[Round "5.7"]
[Annotator "TA"]
[Result "1/2-1/2"]
[Date "2025.01.22"]
[WhiteElo "2731"]
[BlackElo "2677"]
[PlyCount "85"]
[TimeControl "60"]

{[%evp 9,85,15,12,19,10,14,10,14,11,6,10,8,10,9,12,13,18,4,7,7,8,0,6,-5,21,29,21,22,11,13,27,24,19,25,31,30,14,22,22,17,36,16,23,6,26,17,18,12,12,22,13,3,0,0,15,0,0,11,3,7,0,0,0,0,4,8,15,0,0,0,0,0,0,0,0,0,0,0]} 1. e4 {[%emt 0:0:2]} e5 {[%emt 0:0:8]} 2. Nf3 {[%emt 0:0:5]} Nc6 {[%emt 0:0:8]} 3. Bc4 {[%emt 0:0:38]} Nf6 {[%emt 0:0:10]} 4. d3 {[%emt 0:0:4]} Be7 {[%emt 0:0:12]} 5. Nc3 {[%emt 0:0:8]} d6 {[%emt 0:0:44]} 6. a4 {[%emt 0:0:38]} Bg4 {[%emt 0:1:1]} 7. h3 {[%emt 0:3:11]} Bxf3 {[%emt 0:0:32]} 8. Qxf3 {[%emt 0:0:30]} Nd4 {[%emt 0:0:8][%csl Yc2,Yf3]} 9. Qd1 {[%emt 0:0:4]} c6 {[%emt 0:0:14]} 10. Ba2 {[%emt 0:7:14]} Ne6 {[%emt 0:1:3]} 11. O-O {[%emt 0:3:44]} O-O {[%emt 0:0:7]} 12. Re1 {[%emt 0:0:26]} Qc7 {[%emt 0:0:16]} 13. Be3 {[%emt 0:3:31]} a5 {[%emt 0:13:58]} 14. Qf3 {[%emt 0:2:59]} Rad8 {[%emt 0:1:0]} 15. Rab1 {[%emt 0:6:52]} Nd7 {[%emt 0:5:55]} 16. h4 {[%emt 0:19:28]} Nd4 {[%emt 0:9:34]} 17. Bxd4 {[%emt 0:0:17]} exd4 {[%emt 0:0:5]} 18. Ne2 {[%emt 0:0:4][%cal Yc3e2,Ye2d4,Yd4f5][%mdl 32]} Bxh4 {[%emt 0:0:13]} 19. Nxd4 {[%emt 0:3:26]} Bf6 {[%emt 0:0:24]} 20. Nf5 {[%emt 0:1:2]} g6 {[%emt 0:0:25]} 21. Qg3 {[%emt 0:4:42]} Be5 {[%emt 0:11:19]} 22. f4 {[%emt 0:1:34]} Bg7 {[%emt 0:0:3]} 23. Nxg7 {[%emt 0:0:38]} Kxg7 {[%emt 0:0:2]} 24. d4 {[%emt 0:2:25]} Nf6 {[%emt 0:13:23]} 25. c3 {[%emt 0:7:7]} h5 {[%emt 0:7:37]} 26. Re2 {[%emt 0:7:17]} Ng4 {[%emt 0:4:9]} 27. Rbe1 {[%emt 0:0:32]} Rfe8 {[%emt 0:5:37]} 28. f5 {[%emt 0:1:36]} Qe7 {[%emt 0:2:48]} 29. Rf1 {[%emt 0:0:37] next fxg6 is good for White.} (29. Qf4 {feels hotter.} Qh4 30. g3 Qf6 31. Rf1 )Qg5 {[%emt 0:4:17] [#]} 30. f6+ $1 {[%emt 0:4:11]} Kh6 {[%emt 0:0:28][%cal Yg7h6,Yh6g5,Yg5f6,Yf6f7][%mdl 32]} 31. Bxf7 {[%emt 0:4:55]} Rf8 {[%emt 0:0:44]} 32. Be6 {[%emt 0:0:19]} Rxf6 {[%emt 0:8:13]} 33. Rxf6 {[%emt 0:12:36]} Nxf6 {[%emt 0:0:15]} 34. Qxg5+ {[%emt 0:0:3]} Kxg5 $11 {[%emt 0:0:7][%mdl 4096] Endgame KRB-KRN} 35. e5 {[%emt 0:0:1]} Nd5 {[%emt 0:10:42]} 36. g3 {[%emt 0:0:52] Wards off Nf4} dxe5 {[%emt 0:0:32]} 37. Rxe5+ {[%emt 0:1:17]} Kf6 {[%emt 0:0:4]} 38. Bh3 {[%emt 0:1:53]} Kf7 {[%emt 0:6:32]} 39. Bg2 {[%emt 0:2:26]} b6 {[%emt 0:0:17]} 40. Bf3 {[%emt 0:5:59]} Kf6 {[%emt 0:0:47]} 41. Kf2 {[%emt 0:50:46]} Ne7 {[%emt 0:50:20]} 42. g4 {[%emt 0:1:49]} hxg4 {[%emt 0:0:9]} 43. Bxg4 {[%emt 0:1:11]} 1/2-1/2

[Event "87th Tata Steel Masters 2025"]
[White "Erigaisi,Arjun Kumar"]
[Black "Caruana,Fabiano"]
[Site "Wijk aan Zee"]
[Round "6.1"]
[Annotator "TA"]
[Result "1/2-1/2"]
[Date "2025.01.24"]
[WhiteElo "2801"]
[BlackElo "2803"]
[PlyCount "60"]
[TimeControl "60"]

{[%evp 18,60,13,20,20,9,8,1,4,0,17,8,8,8,9,0,7,0,0,0,0,0,0,0,0,0,0,0,0,0,0,-15,0,0,0,0,0,0,0,0,0,0,0,0,4]} 1. e4 {[%emt 0:0:12]} e5 {[%emt 0:0:9]} 2. Nf3 {[%emt 0:0:7]} Nc6 {[%emt 0:0:4]} 3. Bb5 {[%emt 0:0:8]} Nf6 {[%emt 0:0:10]} 4. O-O {[%emt 0:1:55][%cal Yh1f1,Yf1e1,Ye1e5][%mdl 32]} Nxe4 {[%emt 0:0:22]} 5. Re1 {[%emt 0:0:8]} Nd6 {[%emt 0:0:11]} 6. Nxe5 {[%emt 0:0:18]} Be7 {[%emt 0:0:15]} 7. Bf1 {[%emt 0:0:9]} Nxe5 {[%emt 0:0:5]} 8. Rxe5 {[%emt 0:0:6]} O-O {[%emt 0:0:5]} 9. d4 {[%emt 0:1:39]} Bf6 {[%emt 0:0:38]} 10. Re1 {[%emt 0:0:9] The position is equal.} Re8 {[%emt 0:0:6] 10...Re8 is better than 10...Nf5. C67: Ruy Lopez: Berlin Defence: 4 0-0 Nxe4.} 11. Rxe8+ {[%emt 0:0:38]} Nxe8 {[%emt 0:1:10]} 12. c3 {[%emt 0:0:37]} d5 {[%emt 0:0:41]} 13. Bd3 {[%emt 0:0:8]} g6 {[%emt 0:2:9]} 14. Nd2 {[%emt 0:1:4] Not much happening anymore} c6 {[%emt 0:3:1] The position is symmetric and equal} 15. Nf3 {[%emt 0:1:44]} Ng7 {[%emt 0:0:41]} 16. Bf4 {[%emt 0:1:17]} Bf5 {[%emt 0:0:45]} 17. Bxf5 {[%emt 0:1:43]} Nxf5 {[%emt 0:0:5]} 18. Qd2 {[%emt 0:2:26]} Qf8 {[%emt 0:4:24]} 19. Re1 {[%emt 0:1:8]} Re8 {[%emt 0:0:43]} 20. Rxe8 {[%emt 0:0:14]} Qxe8 {[%emt 0:0:4]} 21. Qe1 {[%emt 0:0:7]} Qxe1+ {[%emt 0:0:24]} 22. Nxe1 $11 {[%emt 0:0:6][%mdl 4096] Endgame KBN-KBN} Ng7 $146 {[%emt 0:0:22]} (22... Be7 23. Nd3 Ng7 24. g4 Ne6 25. Bb8 {½-½ Zubov,A (2607)-Bacrot,E (2711) EU-ch 16th Jerusalem 2015 (3)} )23. Kf1 {[%emt 0:0:20]} Ne6 {[%emt 0:0:4]} 24. Be3 {[%emt 0:0:6]} h5 {[%emt 0:0:17]} 25. Ke2 {[%emt 0:0:21]} Kf8 {[%emt 0:0:21]} 26. Nd3 {[%emt 0:0:11]} Ke7 {[%emt 0:0:7]} 27. Ne1 {[%emt 0:0:18]} Bg7 {[%emt 0:0:27]} 28. Nd3 {[%emt 0:0:11]} Bf6 {[%emt 0:0:5]} 29. Ne1 {[%emt 0:0:7]} Bg7 {[%emt 0:0:2]} 30. Nd3 {[%emt 0:0:9]} Bf6 {[%emt 0:0:13] An uneventful encounter.   Weighted Error Value: White=0.02 (flawless) /Black=0.02 (flawless)   OK:         	White=9     	Black=5} 1/2-1/2

[Event "87th Tata Steel Masters 2025"]
[White "Keymer,Vincent"]
[Black "Giri,Anish"]
[Site "Wijk aan Zee"]
[Round "6.2"]
[Annotator "TA"]
[Result "1/2-1/2"]
[Date "2025.01.24"]
[WhiteElo "2733"]
[BlackElo "2731"]
[PlyCount "107"]
[TimeControl "60"]

{[%evp 15,107,0,9,0,0,0,0,0,24,18,14,0,0,-10,0,0,0,0,0,0,0,0,0,0,10,6,8,0,39,34,28,-6,-11,-31,-8,-25,-21,-31,-25,-22,-25,-18,-11,-31,-29,-27,7,8,8,8,8,8,8,8,8,8,8,8,8,8,8,0,8,8,8,0,0,0,0,0,9,0,0,0,10,11,8,22,43,1,33,0,0,0,0,0,0,0,0,0,0,0,0,0]} 1. d4 {[%emt 0:0:3]} Nf6 {[%emt 0:0:6]} 2. c4 {[%emt 0:0:3]} g6 {[%emt 0:0:6]} 3. g3 {[%emt 0:7:10]} c6 {[%emt 0:0:39]} 4. Bg2 {[%emt 0:0:27]} d5 {[%emt 0:0:6]} 5. Qb3 {[%emt 0:1:45]} Bg7 {[%emt 0:3:20]} 6. Nc3 {[%emt 0:0:33]} O-O {[%emt 0:0:33]} 7. Nf3 {[%emt 0:4:38]} Qb6 {[%emt 0:0:19]} 8. O-O {[%emt 0:1:25]} Rd8 {[%emt 0:0:14]} 9. h3 {[%emt 0:4:16] D78: Fianchetto Grünfeld: 6 0-0 c6.} Be6 {[%emt 0:5:57]} 10. c5 {[%emt 0:9:29]} Qxb3 {[%emt 0:2:59]} 11. axb3 {[%emt 0:0:9]} Ne4 {[%emt 0:10:40]} 12. Bf4 {[%emt 0:11:53]} Nd7 {[%emt 0:1:5]} 13. g4 {[%emt 0:8:47]} h6 {[%emt 0:6:37]} 14. Ra4 $146 {[%emt 0:7:2]} (14. e3 g5 15. Bc7 Rdc8 16. Bh2 f5 17. gxf5 Bxf5 18. Ra4 a6 19. Rd1 Rd8 20. Ne1 {1-0 Jumabayev,R (2490)-Vokarev,S (2542) Khanty-Mansiysk Governor Cup 2008 (9)} )g5 {[%emt 0:37:52]} 15. Bc7 {[%emt 0:2:42]} Rdc8 {[%emt 0:0:6]} 16. Bh2 {[%emt 0:0:5]} f5 {[%emt 0:1:24]} 17. gxf5 {[%emt 0:7:5]} Bxf5 {[%emt 0:0:12]} 18. Rfa1 {[%emt 0:0:3]} a6 {[%emt 0:0:19]} 19. Rb4 {[%emt 0:0:38]} Nxc3 {[%emt 0:0:34]} 20. bxc3 {[%emt 0:0:20]} Ra7 {[%emt 0:0:4]} 21. Ra5 {[%emt 0:7:41]} Be4 {[%emt 0:4:26]} 22. h4 {[%emt 0:12:3]} g4 {[%emt 0:1:29] Repels Bh3} 23. Ne1 {[%emt 0:1:53]} Bf5 {[%emt 0:5:5]} 24. Ra2 {[%emt 0:0:6]} h5 {[%emt 0:1:58]} 25. Rba4 {[%emt 0:6:35]} e5 {[%emt 0:2:32]} 26. e3 {[%emt 0:1:4]} Re8 {[%emt 0:0:6]} 27. Bf1 {[%emt 0:3:27]} Nf8 {[%emt 0:2:38]} 28. Ng2 {[%emt 0:5:45]} Ng6 {[%emt 0:6:30]} 29. b4 {[%emt 0:0:5][%cal Yb4b5]} Bd7 {[%emt 0:0:6]} 30. Bd3 {[%emt 0:0:52]} Kf7 {[%emt 0:0:43]} 31. Bxg6+ {[%emt 0:4:2]} Kxg6 {[%emt 0:0:3]} 32. Bxe5 {[%emt 0:0:5]} Bxe5 {[%emt 0:0:17]} 33. dxe5 {[%emt 0:0:4]} Rxe5 {[%emt 0:0:4]} 34. Rd2 {[%emt 0:0:52]} Be8 {[%emt 0:2:11]} 35. Ra1 {[%emt 0:2:23]} Bf7 {[%emt 0:1:11]} 36. Nf4+ {[%emt 0:0:57]} Kf6 {[%emt 0:0:27]} 37. Rd4 {[%emt 0:1:34]} Ra8 {[%emt 0:0:31]} 38. Ne2 {[%emt 0:0:52]} Ke7 {[%emt 0:4:3]} 39. Kf1 {[%emt 0:0:20]} Bg6 {[%emt 0:1:33]} 40. Ng3 {[%emt 0:0:33]} Rf8 {[%emt 0:1:6]} 41. Rf4 {[%emt 0:3:16]} Rf6 {[%emt 0:16:20]} 42. Rd1 {[%emt 0:2:30]} Kf7 {[%emt 0:0:53]} 43. Rdd4 {[%emt 0:8:19]} Re8 {[%emt 0:0:45]} 44. Ne2 {[%emt 0:6:35]} Be4 {[%emt 0:12:22]} 45. c4 {[%emt 0:5:8]} Rxf4 {[%emt 0:1:4]} 46. Nxf4 $11 {[%emt 0:0:7][%cal Rc4d5][%mdl 4096] Endgame KRB-KRN} Re5 {[%emt 0:0:11]} 47. Ke1 {[%emt 0:2:42]} Kf6 {[%emt 0:3:36]} 48. Kd2 {[%emt 0:1:29]} Rf5 {[%emt 0:0:32] The position is equal.} 49. Kc3 {[%emt 0:5:8]} Ke5 {[%emt 0:0:11]} 50. cxd5 {[%emt 0:5:1]} cxd5 {[%emt 0:0:3]} 51. Rd2 {[%emt 0:0:6]} Bh1 {[%emt 0:1:9]} 52. Rd4 {[%emt 0:10:35]} Be4 {[%emt 0:0:9]} 53. Rd1 {[%emt 0:0:6]} Bf3 {[%emt 0:1:52]} 54. Rd4 {[%emt 0:2:27] Weighted Error Value: White=0.05 (flawless) /Black=0.05 (flawless)   Inaccurate:     	White=3     	Black=3      OK:         	White=16    	Black=26} 1/2-1/2